bitfinex-derivatives/quotes_BTCF0:USTF0_20241218
["timestamp","ask_amount","ask_price","bid_price","bid_amount"]
[1734491345027,0.408497,104830.0,104810.0,0.047699]
[1734491345427,0.408497,104830.0,104820.0,0.047698]
[1734491345730,0.52755288,104830.0,104810.0,0.047701]
[1734491345930,0.3608,104820.0,104810.0,0.047701]
[1734491347026,0.52755288,104830.0,104810.0,0.047701]
[1734491347233,0.408499,104820.0,104800.0,0.047707]
[1734491347425,0.3608,104810.0,104800.0,0.047707]
[1734491348935,0.47985788,104810.0,104800.0,0.047707]
[1734491349130,0.47985788,104810.0,104780.0,0.36223146]
[1734491349428,0.408507,104800.0,104790.0,0.047711]
[1734491350838,0.047712,104790.0,104780.0,0.04914746]
[1734491351037,0.52756988,104790.0,104780.0,0.00143146]
[1734491351239,0.52756988,104790.0,104770.0,0.047721]
[1734491351429,0.3608,104780.0,104770.0,0.047721]
[1734491351627,0.408517,104780.0,104770.0,0.047721]
[1734491352028,0.3608,104780.0,104770.0,0.047721]
[1734491352937,0.3608,104790.0,104780.0,0.047717]
[1734491353634,0.3608,104800.0,104770.0,0.3608]
[1734491353829,0.3608,104800.0,104790.0,0.047712]
[1734491355132,0.3608,104800.0,104770.0,0.32221248]
[1734491355334,0.3608,104790.0,104780.0,0.047712]
[1734491355735,0.3608,104800.0,104790.0,0.047712]
[1734491356135,0.3931,104820.0,104810.0,0.047703]
[1734491356332,0.0323,104820.0,104810.0,0.047703]
[1734491356837,0.3931,104820.0,104810.0,0.047703]
[1734491357637,0.3931,104820.0,104780.0,0.3935]
[1734491357828,0.3608,104800.0,104790.0,0.047708]
[1734491358934,0.408508,104800.0,104780.0,0.047715]
[1734491359130,0.47985788,104790.0,104780.0,0.047715]
[1734491359330,0.52757388,104790.0,104770.0,0.089443]
[1734491359531,0.3608,104780.0,104770.0,0.089443]
[1734491359724,0.52757388,104790.0,104770.0,0.04772]
[1734491360130,0.3608,104800.0,104790.0,0.047712]
[1734491360333,0.52756188,104810.0,104790.0,0.047712]
[1734491360842,0.3608,104800.0,104790.0,0.047712]
[1734491361735,0.408508,104800.0,104780.0,0.047715]
[1734491361936,0.3608,104790.0,104780.0,0.089438]
[1734491362232,0.408512,104790.0,104780.0,0.041723]
[1734491362432,0.047717,104780.0,104770.0,0.041723]
[1734491362643,0.441017,104780.0,104770.0,0.041723]
[1734491363338,0.441017,104780.0,104770.0,0.089444]
[1734491363943,0.3933,104780.0,104770.0,0.089444]
[1734491366644,0.3396457,104780.0,104770.0,0.089444]
[1734491367239,0.408513,104790.0,104770.0,0.089444]
[1734491367240,0.3608,104790.0,104770.0,0.089444]
[1734491367438,0.3608,104790.0,104780.0,0.047717]
[1734491367644,0.3608,104790.0,104780.0,0.08944]
[1734491369133,0.3608,104800.0,104780.0,0.08944]
[1734491369335,0.3608,104800.0,104780.0,0.041723]
[1734491369336,0.3608,104790.0,104780.0,0.041723]
[1734491369546,0.3608,104790.0,104780.0,0.089439]
[1734491369945,0.3936,104790.0,104780.0,0.089439]
[1734491370336,0.441312,104790.0,104780.0,0.089439]
[1734491371051,0.3936,104790.0,104780.0,0.089439]
[1734491371944,0.3608,104790.0,104780.0,0.089439]
[1734491372539,0.3608,104790.0,104780.0,0.041723]
[1734491372746,0.3608,104790.0,104780.0,0.08944]
[1734491372941,0.408508,104800.0,104790.0,0.047712]
[1734491373148,0.408508,104800.0,104790.0,0.089435]
[1734491373346,0.047708,104800.0,104790.0,0.089435]
[1734491373547,0.408508,104800.0,104790.0,0.089435]
[1734491374251,0.408508,104800.0,104790.0,0.041723]
[1734491374946,0.708508,104800.0,104770.0,0.047721]
[1734491375148,0.47985788,104780.0,104770.0,0.062625]
[1734491375538,0.47985788,104780.0,104770.0,0.06262531]
[1734491375737,0.47985788,104780.0,104770.0,0.047721]
[1734491376050,0.52757488,104780.0,104770.0,0.057721]
[1734491376646,0.47391952,104780.0,104770.0,0.057721]
[1734491377645,0.83483876,104780.0,104770.0,0.01]
[1734491377846,0.047726,104760.0,104750.0,0.04773]
[1734491378048,0.52758388,104760.0,104750.0,0.04773]
[1734491379045,0.3608,104770.0,104760.0,0.047722]
[1734491379240,0.3608,104770.0,104760.0,0.057722]
[1734491380952,0.35498088,104780.0,104760.0,0.057722]
[1734491381747,0.52757888,104770.0,104760.0,0.01]
[1734491383746,0.32607835,104780.0,104760.0,0.01]
[1734491383747,0.32607835,104780.0,104760.0,0.057726]
[1734491383938,0.30726388,104780.0,104770.0,0.047721]
[1734491384350,0.35498088,104780.0,104770.0,0.047721]
[1734491384940,0.35498088,104780.0,104770.0,0.08945255]
[1734491385553,0.35498088,104780.0,104770.0,0.04173155]
[1734491386653,0.30132055,104780.0,104770.0,0.04173155]
[1734491388345,0.42037843,104780.0,104770.0,0.04173155]
[1734491391764,0.42037843,104780.0,104770.0,0.02059181]
[1734491393461,0.41932014,104790.0,104770.0,0.06831281]
[1734491393661,0.047717,104780.0,104770.0,0.06831281]
[1734491394653,0.047717,104780.0,104770.0,0.06838945]
[1734491395048,0.53849199,104790.0,104770.0,0.02066845]
[1734491395250,0.58620599,104790.0,104780.0,0.047717]
[1734491396262,0.58620599,104790.0,104770.0,7.664e-05]
[1734491396554,0.047717,104780.0,104770.0,0.04779764]
[1734491396760,0.53255481,104790.0,104770.0,0.04779764]
[1734491396957,0.408517,104780.0,104770.0,7.664e-05]
[1734491398482,0.047717,104780.0,104770.0,0.04779764]
[1734491398949,0.55550499,104790.0,104780.0,0.047717]
[1734491402656,0.50779199,104790.0,104780.0,0.047717]
[1734491402851,0.00921695,104790.0,104780.0,0.047717]
[1734491403160,0.00143248,104800.0,104790.0,0.047712]
[1734491403357,0.00143248,104800.0,104790.0,0.408512]
[1734491403555,0.12049036,104800.0,104790.0,0.047712]
[1734491403757,0.48129036,104800.0,104790.0,0.047712]
[1734491404062,0.047712,104790.0,104780.0,0.064]
[1734491404261,0.408512,104790.0,104770.0,0.04779664]
[1734491404471,0.11905788,104780.0,104770.0,0.04779664]
[1734491406155,0.47985788,104780.0,104770.0,0.04779664]
[1734491406356,0.52757488,104780.0,104770.0,7.664e-05]
[1734491406862,0.47391635,104780.0,104770.0,0.08933107]
[1734491407052,0.408517,104780.0,104770.0,0.08933107]
[1734491407259,0.408517,104780.0,104770.0,0.04779764]
[1734491407562,0.047717,104780.0,104770.0,0.04779764]
[1734491407969,0.408517,104780.0,104770.0,0.04779764]
[1734491408470,0.408517,104780.0,104770.0,7.664e-05]
[1734491409166,0.41781504,104780.0,104770.0,7.664e-05]
[1734491410463,0.41781504,104780.0,104770.0,0.04779764]
[1734491410866,0.41781504,104780.0,104770.0,7.664e-05]
[1734491411368,0.39995011,104780.0,104770.0,7.664e-05]
[1734491411565,0.05701504,104780.0,104770.0,7.664e-05]
[1734491411959,0.12059433,104780.0,104770.0,7.664e-05]
[1734491412159,0.48139433,104780.0,104770.0,7.664e-05]
[1734491415374,0.48139433,104780.0,104770.0,0.04158151]
[1734491416379,0.12059433,104780.0,104770.0,7.664e-05]
[1734491416566,0.48139433,104780.0,104770.0,7.664e-05]
[1734491416765,0.42437929,104780.0,104770.0,7.664e-05]
[1734491416966,0.47209629,104780.0,104770.0,7.664e-05]
[1734491417167,0.47209629,104780.0,104770.0,0.04148151]
[1734491417371,0.47209629,104780.0,104770.0,7.664e-05]
[1734491418368,0.42790075,104780.0,104770.0,0.04779764]
[1734491418671,0.43724018,104780.0,104770.0,0.04779764]
[1734491419064,0.50081947,104780.0,104770.0,0.04779764]
[1734491419465,0.48143572,104780.0,104770.0,0.04779764]
[1734491422669,0.00933943,104780.0,104770.0,0.40859764]
[1734491422968,0.00143248,104800.0,104790.0,0.047712]
[1734491423365,0.00143248,104800.0,104790.0,0.408512]
[1734491423972,7.506e-05,104810.0,104800.0,0.047707]
[1734491424272,0.06365435,104810.0,104800.0,0.408507]
[1734491424667,7.506e-05,104810.0,104800.0,0.408507]
[1734491426474,0.42445435,104810.0,104800.0,0.047707]
[1734491426668,0.47215735,104810.0,104790.0,0.04771]
[1734491426974,0.42437929,104800.0,104790.0,0.04771]
[1734491427677,0.47208929,104800.0,104780.0,0.111115]
[1734491427977,0.11129129,104790.0,104780.0,0.111115]
[1734491428166,0.047717,104780.0,104770.0,0.40859764]
[1734491428366,0.11129629,104780.0,104770.0,7.664e-05]
[1734491428572,0.50479629,104780.0,104770.0,7.664e-05]
[1734491429371,0.14399629,104780.0,104770.0,7.664e-05]
[1734491429572,0.080417,104780.0,104770.0,7.664e-05]
[1734491429768,0.080417,104780.0,104770.0,0.04779764]
[1734491430269,0.0327,104780.0,104770.0,0.04779764]
[1734491430465,0.408513,104790.0,104770.0,7.664e-05]
[1734491430671,0.408513,104790.0,104780.0,0.047717]
[1734491430873,0.39359299,104800.0,104790.0,0.047712]
[1734491431073,9.299e-05,104800.0,104790.0,0.047712]
[1734491431379,0.06367228,104800.0,104790.0,0.047712]
[1734491431778,9.299e-05,104800.0,104790.0,0.047712]
[1734491432783,9.299e-05,104800.0,104790.0,0.408512]
[1734491433177,0.14277829,104820.0,104790.0,0.408512]
[1734491433483,0.14277829,104820.0,104810.0,0.047703]
[1734491433677,0.15205508,104820.0,104810.0,0.047703]
[1734491434268,0.07292768,104820.0,104810.0,0.047703]
[1734491434475,7.16e-05,104820.0,104810.0,0.408503]
[1734491434875,7.16e-05,104820.0,104810.0,0.112803]
[1734491435975,7.16e-05,104820.0,104810.0,0.473603]
[1734491436275,0.00143228,104830.0,104810.0,0.77371722]
[1734491436471,0.00143228,104830.0,104820.0,0.408498]
[1734491436782,0.06357929,104840.0,104820.0,0.408498]
[1734491436783,0.48256529,104850.0,104830.0,0.047692]
[1734491436986,0.42437929,104840.0,104830.0,0.047692]
[1734491437185,0.42437929,104840.0,104820.0,0.3608]
[1734491437382,0.47207029,104840.0,104820.0,0.408497]
[1734491437685,0.11127029,104840.0,104830.0,0.047694]
[1734491437880,0.49371388,104850.0,104830.0,0.047694]
[1734491438081,0.06357929,104840.0,104830.0,0.047694]
[1734491439085,0.51342644,104850.0,104830.0,0.047694]
[1734491439279,0.46574144,104850.0,104840.0,0.047689]
[1734491439481,0.40216215,104850.0,104840.0,0.047689]
[1734491439892,0.38294959,104850.0,104840.0,0.047689]
[1734491440392,0.02214959,104850.0,104840.0,0.408489]
[1734491440583,0.02164959,104850.0,104840.0,0.408489]
[1734491443889,0.02164959,104850.0,104840.0,0.469289]
[1734491444192,0.047691,104840.0,104820.0,0.408498]
[1734491444490,0.47207029,104840.0,104820.0,0.408498]
[1734491445392,0.408491,104840.0,104830.0,0.047694]
[1734491445593,0.3608,104840.0,104830.0,0.047694]
[1734491446689,0.06933559,104850.0,104830.0,0.408494]
[1734491446987,0.06933559,104850.0,104840.0,0.047689]
[1734491447184,0.43013559,104850.0,104840.0,0.047689]
[1734491447587,0.49371488,104850.0,104840.0,0.047689]
[1734491448492,0.43013559,104850.0,104840.0,0.047689]
[1734491449595,0.02164959,104850.0,104840.0,0.047689]
[1734491449785,0.06933459,104850.0,104840.0,0.047689]
[1734491449986,0.02164959,104850.0,104840.0,0.047689]
[1734491450386,0.02164959,104850.0,104840.0,0.449689]
[1734491452492,0.49371388,104850.0,104840.0,0.01]
[1734491453686,0.02164959,104850.0,104840.0,0.418489]
[1734491453886,0.49371388,104850.0,104840.0,0.01]
[1734491457094,0.49371388,104850.0,104840.0,0.057689]
[1734491458294,0.43013459,104850.0,104840.0,0.057689]
[1734491458797,0.02164959,104850.0,104840.0,0.057689]
[1734491460290,0.02164959,104850.0,104840.0,0.418489]
[1734491460485,0.02164959,104850.0,104840.0,0.450189]
[1734491464204,0.02164959,104850.0,104840.0,0.057689]
[1734491464404,0.06933459,104850.0,104840.0,0.057689]
[1734491465286,0.02164959,104850.0,104840.0,0.418489]
[1734491465495,0.02164959,104850.0,104840.0,0.057689]
[1734491466000,0.02164959,104850.0,104840.0,0.418489]
[1734491467698,0.02164959,104850.0,104840.0,0.057689]
[1734491468402,0.02164959,104850.0,104840.0,0.418489]
[1734491469107,0.02164959,104850.0,104840.0,0.057689]
[1734491469295,0.01007672,104850.0,104840.0,0.418489]
[1734491472602,0.01007672,104850.0,104840.0,0.48206829]
[1734491472812,0.16303867,104870.0,104860.0,0.04768]
[1734491473206,0.078577,104870.0,104860.0,0.04768]
[1734491473605,0.14215629,104870.0,104860.0,0.04768]
[1734491473803,0.078577,104870.0,104860.0,0.04768]
[1734491474202,0.50295629,104870.0,104860.0,0.04768]
[1734491474398,0.51775631,104870.0,104860.0,0.04768]
[1734491475507,0.45417702,104870.0,104860.0,0.04768]
[1734491475703,0.09337702,104870.0,104860.0,0.04768]
[1734491477812,0.06247702,104870.0,104860.0,0.04768]
[1734491478412,0.01480002,104870.0,104860.0,0.04779503]
[1734491478618,0.13213662,104880.0,104860.0,0.04779503]
[1734491478806,0.49293662,104880.0,104870.0,0.047676]
[1734491479110,0.50729037,104880.0,104870.0,0.047676]
[1734491480110,0.0158815,104880.0,104870.0,0.047676]
[1734491480500,0.0635525,104880.0,104870.0,0.047676]
[1734491481204,0.12713179,104880.0,104870.0,0.047676]
[1734491481409,0.0158815,104880.0,104870.0,0.047676]
[1734491481610,0.0158815,104880.0,104870.0,0.408476]
[1734491484404,0.0158815,104880.0,104870.0,0.47205529]
[1734491484807,0.0158815,104880.0,104870.0,0.53875529]
[1734491485105,0.0158815,104880.0,104870.0,0.475176]
[1734491487112,0.0158815,104880.0,104870.0,0.408476]
[1734491487415,0.047675,104870.0,104860.0,0.00011503]
[1734491487602,0.047675,104870.0,104860.0,0.04779503]
[1734491487805,0.1988525,104880.0,104860.0,0.04779503]
[1734491488001,0.62323179,104880.0,104860.0,0.04779503]
[1734491488615,0.62323179,104880.0,104860.0,0.40859503]
[1734491489412,0.047675,104870.0,104860.0,0.40859503]
[1734491490918,0.047675,104870.0,104860.0,0.04779503]
[1734491491710,0.047675,104870.0,104860.0,0.40859503]
[1734491492741,0.4902525,104880.0,104870.0,0.047675]
[1734491492946,0.4425815,104880.0,104870.0,0.047675]
[1734491493945,0.4902525,104880.0,104870.0,0.047675]
[1734491494740,0.0158815,104880.0,104870.0,0.047675]
[1734491495239,0.0158815,104880.0,104870.0,0.408475]
[1734491495543,0.0158815,104880.0,104870.0,0.047675]
[1734491495935,0.0635525,104880.0,104870.0,0.047675]
[1734491497039,0.0635525,104880.0,104860.0,0.40859303]
[1734491497230,0.12713179,104880.0,104860.0,0.40859303]
[1734491497433,0.11125429,104870.0,104860.0,0.00011503]
[1734491497738,0.047675,104870.0,104860.0,0.00011503]
[1734491498243,0.47205429,104870.0,104860.0,0.00011503]
[1734491500325,0.408475,104870.0,104860.0,0.00011503]
[1734491500616,0.47205429,104870.0,104860.0,0.04779503]
[1734491501126,0.408475,104870.0,104860.0,0.04779503]
[1734491501331,0.047675,104870.0,104860.0,0.04779503]
[1734491502522,0.0635535,104880.0,104860.0,0.40859503]
[1734491502727,0.0158815,104880.0,104870.0,0.047675]
[1734491504423,0.16674326,104900.0,104870.0,0.408475]
[1734491504625,0.16674326,104900.0,104880.0,0.047668]
[1734491504824,0.21124129,104900.0,104890.0,0.047666]
[1734491505025,0.147662,104900.0,104890.0,0.047666]
[1734491506027,0.21124129,104900.0,104890.0,0.047666]
[1734491506927,0.17106419,104900.0,104890.0,0.047666]
[1734491507334,0.12340219,104900.0,104890.0,0.047666]
[1734491507526,0.12340219,104900.0,104890.0,0.408466]
[1734491509129,0.1,104900.0,104890.0,0.47204529]
[1734491509328,7.216e-05,104920.0,104910.0,0.047657]
[1734491509830,7.216e-05,104920.0,104910.0,0.04774432]
[1734491510034,0.02249856,104920.0,104910.0,0.40854432]
[1734491510231,7.216e-05,104920.0,104910.0,0.40854432]
[1734491510430,7.216e-05,104920.0,104910.0,0.61152361]
[1734491510733,7.216e-05,104920.0,104910.0,0.54794432]
[1734491511128,7.216e-05,104920.0,104910.0,0.61152361]
[1734491513135,0.0230138,104930.0,104920.0,0.047653]
[1734491513336,0.3613,104940.0,104930.0,0.047648]
[1734491513736,0.3608,104940.0,104930.0,0.047648]
[1734491514243,0.53882029,104950.0,104930.0,0.047648]
[1734491514631,0.0005,104940.0,104930.0,0.047648]
[1734491516242,0.01012281,104960.0,104950.0,0.047639]
[1734491516539,0.4821361,104960.0,104940.0,0.047642]
[1734491516928,0.3608,104950.0,104940.0,0.047642]
[1734491517725,0.3613,104950.0,104940.0,0.047642]
[1734491518735,0.3608,104950.0,104940.0,0.047642]
[1734491518943,0.408439,104950.0,104940.0,0.047642]
[1734491519838,0.408939,104950.0,104940.0,0.047642]
[1734491520539,0.47251829,104950.0,104940.0,0.047642]
[1734491520837,0.54651829,104950.0,104940.0,0.047642]
[1734491521735,0.54601829,104950.0,104940.0,0.047642]
[1734491523230,0.482439,104950.0,104940.0,0.047642]
[1734491523436,0.408439,104950.0,104940.0,0.047642]
[1734491527839,0.39347864,104960.0,104950.0,0.047639]
[1734491528244,0.03267864,104960.0,104950.0,0.40855413]
[1734491528744,0.03267864,104960.0,104950.0,0.54725413]
[1734491529139,0.03267864,104960.0,104950.0,0.61083342]
[1734491529340,0.01012281,104960.0,104950.0,0.91083342]
[1734491530039,1e-08,104960.0,104950.0,0.91083342]
[1734491532751,1e-08,104960.0,104950.0,0.63343581]
[1734491532944,1e-08,104960.0,104950.0,0.93343581]
[1734491534346,1e-08,104960.0,104950.0,0.54725413]
[1734491534650,1e-08,104960.0,104950.0,0.61083342]
[1734491536551,1e-08,104960.0,104950.0,0.91083342]
[1734491539562,1e-08,104960.0,104950.0,0.54725413]
[1734491541055,1e-08,104960.0,104950.0,0.54632847]
[1734491542250,0.08428226,104960.0,104950.0,0.54632847]
[1734491542759,0.08428226,104960.0,104950.0,0.60990776]
[1734491543955,0.08428226,104960.0,104950.0,0.90990776]
[1734491544252,1e-08,104960.0,104950.0,0.90990776]
[1734491545258,0.08428226,104960.0,104950.0,0.90990776]
[1734491546051,0.08428226,104960.0,104950.0,0.60990776]
[1734491548466,1e-08,104960.0,104950.0,0.60990776]
[1734491552255,0.08428226,104960.0,104950.0,0.60990776]
[1734491552451,1e-08,104960.0,104950.0,0.60990776]
[1734491552757,0.08428226,104960.0,104950.0,0.60990776]
[1734491554363,1e-08,104960.0,104950.0,0.60990776]
[1734491554571,0.08428226,104960.0,104950.0,0.60990776]
[1734491555261,1e-08,104960.0,104950.0,0.60990776]
[1734491555457,0.08428226,104960.0,104950.0,0.60990776]
[1734491556559,0.11237634,104960.0,104950.0,0.60990776]
[1734491556760,0.19702472,104960.0,104950.0,0.60990776]
[1734491557169,0.08464839,104960.0,104950.0,0.60990776]
[1734491557468,0.11237634,104960.0,104950.0,0.60990776]
[1734491558860,0.11237634,104960.0,104950.0,0.62869433]
[1734491559271,0.08474975,104960.0,104950.0,0.62869433]
[1734491559566,0.19712608,104960.0,104950.0,0.62869433]
[1734491560170,0.08474975,104960.0,104950.0,0.62869433]
[1734491560369,0.08474975,104960.0,104950.0,0.56511504]
[1734491560573,0.11237634,104960.0,104950.0,0.40762847]
[1734491560767,0.18277634,104960.0,104950.0,0.40762847]
[1734491562258,0.26751281,104960.0,104950.0,0.40762847]
[1734491562463,0.15513648,104960.0,104950.0,0.40762847]
[1734491563267,0.07040001,104960.0,104950.0,0.40762847]
[1734491563960,0.07040001,104960.0,104950.0,0.41762847]
[1734491565067,0.08866979,104960.0,104950.0,0.41762847]
[1734491565461,0.07040001,104960.0,104950.0,0.41762847]
[1734491566466,0.1339793,104960.0,104950.0,0.01011513]
[1734491566668,0.04764,104950.0,104930.0,0.408447]
[1734491566869,0.3608,104940.0,104910.0,0.42644074]
[1734491567171,0.18492929,104930.0,104920.0,0.01]
[1734491567572,0.18492929,104930.0,104920.0,0.01008485]
[1734491568765,0.047653,104920.0,104910.0,0.01]
[1734491568972,0.47203229,104920.0,104900.0,0.047661]
[1734491569174,0.075,104910.0,104900.0,0.047661]
[1734491569877,0.075,104910.0,104900.0,0.04773365]
[1734491571372,0.49807929,104930.0,104920.0,0.047653]
[1734491571671,0.145,104930.0,104920.0,0.047653]
[1734491575775,0.145,104930.0,104920.0,0.408453]
[1734491578773,0.145,104930.0,104920.0,0.047653]
[1734491579378,0.145,104930.0,104920.0,0.408453]
[1734491579581,0.08786965,104940.0,104930.0,0.047648]
[1734491579771,0.16406965,104940.0,104930.0,0.047648]
[1734491580575,0.09426965,104940.0,104930.0,0.047648]
[1734491580773,0.09426965,104940.0,104930.0,0.47202729]
[1734491581272,0.0762,104940.0,104930.0,0.47202729]
[1734491581477,0.0762,104940.0,104930.0,0.408448]
[1734491582571,0.0762,104940.0,104930.0,0.047648]
[1734491583574,0.0762,104940.0,104920.0,0.408452]
[1734491583879,0.123844,104940.0,104920.0,0.408452]
[1734491585179,0.484644,104940.0,104920.0,0.408452]
[1734491586482,0.54822329,104940.0,104920.0,0.047652]
[1734491590277,0.047653,104920.0,104910.0,0.047656]
[1734491590578,0.47203229,104920.0,104900.0,0.04773165]
[1734491590773,0.4355,104910.0,104900.0,0.04773165]
[1734491591385,0.54673629,104910.0,104900.0,7.265e-05]
[1734491592476,0.91031558,104910.0,104870.0,0.0005]
[1734491592677,0.11125029,104880.0,104870.0,0.0005]
[1734491592884,0.047671,104880.0,104870.0,0.047675]
[1734491593380,0.47205029,104880.0,104870.0,0.00010129]
[1734491593586,0.477571,104880.0,104870.0,0.00010129]
[1734491593877,0.40857654,104890.0,104870.0,0.47215558]
[1734491594182,0.40857654,104890.0,104870.0,0.40857629]
[1734491594985,0.47215583,104890.0,104870.0,0.40857629]
[1734491595282,0.47215583,104890.0,104870.0,0.47997629]
[1734491595781,0.00010954,104890.0,104880.0,0.408471]
[1734491595976,0.00010954,104890.0,104880.0,0.551271]
[1734491596280,0.0180253,104890.0,104880.0,0.551271]
[1734491596476,0.00010954,104890.0,104880.0,0.551271]
[1734491596883,0.00010954,104890.0,104880.0,0.190471]
[1734491597084,0.00010954,104890.0,104880.0,0.551271]
[1734491597980,0.00010954,104890.0,104880.0,0.3608]
[1734491597981,0.06368883,104890.0,104880.0,0.3608]
[1734491598187,0.047671,104880.0,104870.0,0.00010129]
[1734491598489,0.53562958,104880.0,104870.0,0.00010129]
[1734491599087,0.47205029,104880.0,104870.0,0.00010129]
[1734491599686,0.3608,104880.0,104870.0,0.00010129]
[1734491600080,0.61705583,104890.0,104870.0,0.00010129]
[1734491600883,0.3608,104880.0,104870.0,0.00010129]
[1734491601085,0.408471,104880.0,104870.0,0.00010129]
[1734491601285,0.47205029,104880.0,104870.0,0.00010129]
[1734491606691,0.49017687,104880.0,104870.0,0.00010129]
[1734491608182,0.55375616,104880.0,104870.0,0.00010129]
[1734491608486,0.047683,104860.0,104840.0,0.408989]
[1734491608677,0.17484258,104850.0,104840.0,0.3613]
[1734491608884,0.17484258,104850.0,104840.0,0.3608]
[1734491609091,0.047689,104840.0,104830.0,0.00143078]
[1734491609286,0.047693,104830.0,104820.0,0.047697]
[1734491609476,0.11127229,104830.0,104820.0,0.04778455]
[1734491610286,0.47207229,104830.0,104820.0,8.755e-05]
[1734491610487,0.11127229,104830.0,104820.0,8.755e-05]
[1734491610790,0.47207229,104830.0,104820.0,8.755e-05]
[1734491612786,0.47207229,104830.0,104820.0,0.00058755]
[1734491613384,0.37875828,104830.0,104820.0,0.04828555]
[1734491613591,0.434,104840.0,104830.0,0.047693]
[1734491613791,0.42437929,104840.0,104830.0,0.047693]
[1734491614195,0.42437929,104840.0,104820.0,0.07198755]
[1734491614388,0.11127229,104830.0,104820.0,0.07198755]
[1734491614591,0.47207229,104830.0,104820.0,0.07198755]
[1734491614779,0.47207229,104830.0,104820.0,0.07248755]
[1734491614984,0.47207229,104830.0,104820.0,0.00058755]
[1734491615587,0.47207229,104830.0,104810.0,0.0471846]
[1734491615790,0.11127229,104830.0,104810.0,0.0476846]
[1734491615982,0.47207229,104830.0,104810.0,0.0476846]
[1734491616495,0.47207229,104830.0,104820.0,0.00012334]
[1734491617088,0.54137229,104830.0,104820.0,0.00012334]
[1734491617894,0.61417229,104830.0,104820.0,0.00012334]
[1734491618901,0.408493,104830.0,104820.0,0.00012334]
[1734491619196,0.47207229,104830.0,104820.0,0.04782134]
[1734491619400,0.408493,104830.0,104820.0,0.04782134]
[1734491619705,0.47207229,104830.0,104820.0,0.04782134]
[1734491620399,0.3608,104830.0,104820.0,0.04782134]
[1734491620601,0.48999471,104840.0,104820.0,0.04782134]
[1734491620796,0.42641542,104840.0,104830.0,0.047693]
[1734491621398,0.06561542,104840.0,104830.0,0.047693]
[1734491621792,0.12919471,104840.0,104830.0,0.047693]
[1734491622398,0.047694,104830.0,104820.0,0.36092334]
[1734491622593,0.047694,104830.0,104820.0,0.00012334]
[1734491622594,0.47207329,104830.0,104820.0,0.00012334]
[1734491622998,0.55680976,104830.0,104820.0,0.00012334]
[1734491623300,0.11128229,104810.0,104800.0,0.288906]
[1734491623893,0.19601876,104810.0,104800.0,0.288906]
[1734491624095,0.19601876,104810.0,104800.0,0.10007114]
[1734491626306,0.13243947,104810.0,104800.0,0.14777814]
[1734491626497,0.08473647,104810.0,104800.0,0.14777814]
[1734491628102,0.10090981,104810.0,104800.0,0.14777814]
[1734491630302,0.1644891,104810.0,104800.0,0.10007114]
[1734491630502,0.32456843,104810.0,104800.0,0.10007114]
[1734491630910,0.60063196,104810.0,104800.0,0.10007114]
[1734491631600,0.06387634,104810.0,104800.0,0.10007114]
[1734491631809,0.14794502,104810.0,104800.0,0.14777814]
[1734491632004,0.21152431,104810.0,104800.0,0.14777814]
[1734491632309,0.32390064,104810.0,104800.0,0.14777814]
[1734491632611,0.23983196,104810.0,104800.0,0.14777814]
[1734491633811,0.60063196,104810.0,104800.0,0.14777814]
[1734491635014,0.60063196,104810.0,104800.0,0.10007114]
[1734491635710,0.62872604,104810.0,104800.0,0.10007114]
[1734491636411,1.10432013,104810.0,104780.0,0.047713]
[1734491636608,0.58438014,104790.0,104780.0,0.047713]
[1734491636805,0.58437663,104790.0,104780.0,0.047713]
[1734491637012,0.65607663,104790.0,104780.0,0.047713]
[1734491637407,0.68415235,104790.0,104780.0,0.04783421]
[1734491638612,0.32335235,104790.0,104780.0,0.04783421]
[1734491638915,0.37971784,104790.0,104780.0,0.04783421]
[1734491639109,0.26842655,104790.0,104780.0,0.04783421]
[1734491639311,0.33200584,104790.0,104780.0,0.04783421]
[1734491639612,0.74051784,104790.0,104780.0,0.04783421]
[1734491640014,0.74051784,104790.0,104780.0,0.00012121]
[1734491640218,0.65620646,104790.0,104780.0,0.00012121]
[1734491641309,0.55750744,104790.0,104780.0,0.00012121]
[1734491641512,0.44509227,104790.0,104780.0,0.04783821]
[1734491642115,0.08429227,104790.0,104780.0,0.04783821]
[1734491642506,0.01658874,104790.0,104780.0,0.04783821]
[1734491642712,0.66879473,104800.0,104780.0,0.04783821]
[1734491643415,0.55637956,104800.0,104780.0,0.40863821]
[1734491643619,0.55637956,104800.0,104790.0,0.047712]
[1734491644115,0.19557956,104800.0,104790.0,0.047712]
[1734491644523,0.11128729,104800.0,104790.0,0.047712]
[1734491645718,0.49279627,104810.0,104790.0,0.047712]
[1734491645921,0.11241517,104800.0,104790.0,0.047712]
[1734491646422,0.19670729,104800.0,104790.0,0.047712]
[1734491646618,0.26028658,104800.0,104790.0,0.047712]
[1734491646818,0.47209129,104800.0,104780.0,0.05784021]
[1734491647026,0.06357929,104790.0,104780.0,0.05784021]
[1734491647324,0.47209129,104800.0,104780.0,0.05784021]
[1734491648014,0.42437929,104790.0,104780.0,0.05784021]
[1734491648218,0.3608,104790.0,104780.0,0.05784021]
[1734491648613,0.54139429,104790.0,104780.0,0.05784021]
[1734491648820,0.54139429,104790.0,104780.0,0.01012121]
[1734491649415,0.68289429,104790.0,104780.0,0.01012121]
[1734491649815,0.68289429,104790.0,104780.0,2.1e-07]
[1734491650019,0.047734,104750.0,104740.0,0.38219391]
[1734491650227,0.40853,104760.0,104740.0,0.42993091]
[1734491650520,0.3608,104760.0,104750.0,0.047734]
[1734491650721,0.42437929,104770.0,104760.0,0.047729]
[1734491650930,0.42437929,104770.0,104760.0,0.04779894]
[1734491651324,0.3608,104770.0,104760.0,0.04779894]
[1734491651924,0.73736629,104790.0,104760.0,0.04779894]
[1734491652119,0.65307722,104790.0,104760.0,0.04779894]
[1734491652324,0.65307722,104790.0,104780.0,0.04772]
[1734491653131,0.08719793,104790.0,104780.0,0.04772]
[1734491653424,0.08719793,104790.0,104780.0,0.40852]
[1734491653734,0.00143211,104790.0,104780.0,0.40852]
[1734491656942,0.0758,104810.0,104800.0,0.047711]
[1734491657347,0.13937929,104810.0,104800.0,0.047711]
[1734491657852,0.15564462,104810.0,104800.0,0.047711]
[1734491658446,0.51644462,104810.0,104800.0,0.047711]
[1734491659048,0.15564462,104810.0,104800.0,0.047711]
[1734491660546,0.09206533,104810.0,104800.0,0.047711]
[1734491661947,0.0758,104810.0,104800.0,0.047711]
[1734491662153,0.00011976,104820.0,104810.0,0.047706]
[1734491662452,0.00011976,104820.0,104810.0,0.408506]